bitfinex-derivatives/quotes_SOLF0:USTF0_20251119
["timestamp","ask_amount","ask_price","bid_price","bid_amount"]
[1763532540559,3.15,138.23,138.17,46.71996827]
[1763532540952,3.15,138.23,138.19,0.04872755]
[1763532543559,3.12,138.29,138.19,0.04872755]
[1763532543761,3.12,138.28,138.23,0.05083626]
[1763532544144,3.12,138.26,138.23,0.05083626]
[1763532544556,3.12,138.26,138.17,109.98446827]
[1763532544557,3.12,138.25,138.17,8.57996827]
[1763532545061,3.12,138.25,138.17,109.98536827]
[1763532545356,3.12,138.25,138.21,8.57996827]
[1763532545666,0.05224493,138.24,138.22,0.05009675]
[1763532546757,0.05224493,138.24,138.22,6.56669675]
[1763532547064,6.5132,138.3,138.22,101.41859675]
[1763532547362,107.94512797,138.37,138.22,101.41859675]
[1763532547363,3.12,138.34,138.25,8.57996827]
[1763532547965,3.12,138.27,138.14,101.4275]
[1763532548154,3.12,138.31,138.25,101.3498]
[1763532548360,3.12,138.35,138.28,8.57996827]
[1763532548549,103.25643734,138.42,138.28,148.04726827]
[1763532548857,3.12,138.38,138.32,5.11026516]
[1763532549061,3.12,138.35,138.34,0.04645574]
[1763532549354,0.05352656,138.36,138.34,0.04645574]
[1763532549557,3.17352656,138.36,138.34,0.04645574]
[1763532550056,0.05352656,138.36,138.34,0.04645574]
[1763532550252,3.12,138.39,138.34,0.04645574]
[1763532550253,3.12,138.39,138.35,5.11026516]
[1763532550753,2.03003734,138.42,138.34,0.04645574]
[1763532550754,3.12,138.41,138.34,101.32945574]
[1763532550960,3.12,138.41,138.34,107.84015574]
[1763532551160,3.12,138.41,138.35,101.2744]
[1763532551369,2.03003734,138.42,138.35,106.38466516]
[1763532551662,5.15003734,138.42,138.37,0.04571805]
[1763532552373,3.12,138.41,138.37,0.04571805]
[1763532552661,3.12,138.47,138.39,106.35636516]
[1763532552847,3.12,138.47,138.4,6.5079]
[1763532553051,3.12,138.45,138.42,0.04774432]
[1763532553461,0.23333,138.46,138.42,106.37900948]
[1763532553657,0.23333,138.46,138.42,0.04774432]
[1763532553971,3.35333,138.46,138.42,0.04774432]
[1763532554660,0.23333,138.46,138.42,0.04774432]
[1763532555260,0.23333,138.46,138.42,101.27224432]
[1763532555457,0.23333,138.46,138.42,107.77954432]
[1763532555658,0.23333,138.46,138.43,101.3953]
[1763532555863,0.23333,138.46,138.43,0.18]
[1763532556064,0.23333,138.46,138.43,107.9023]
[1763532556262,3e-05,138.46,138.44,101.2066]
[1763532556767,3e-05,138.46,138.45,6.5059]
[1763532557465,3e-05,138.46,138.43,0.18]
[1763532557659,3.12003,138.46,138.43,0.18]
[1763532557855,3.12,138.45,138.34,107.791]
[1763532558054,3.12,138.45,138.35,38.24]
[1763532558671,3.12,138.43,138.32,106.40626516]
[1763532558874,3.12,138.38,138.36,0.04788593]
[1763532559074,3.12,138.38,138.29,101.3175]
[1763532559367,3.12,138.38,138.29,6.5134]
[1763532560066,0.05005417,138.35,138.32,0.05227788]
[1763532560457,0.05005417,138.35,138.32,101.35017788]
[1763532560868,0.05005417,138.35,138.32,0.05227788]
[1763532562269,0.05005417,138.35,138.32,107.86037788]
[1763532562674,0.05005417,138.35,138.32,101.34877788]
[1763532562974,3.09,138.44,138.34,101.283]
[1763532563168,3.09,138.44,138.34,38.28]
[1763532563769,3.09,138.44,138.34,44.7906]
[1763532563975,3.09,138.39,138.38,0.04669884]
[1763532564366,0.04807278,138.4,138.38,0.04669884]
[1763532564671,3.13807278,138.4,138.38,0.04669884]
[1763532565472,0.04807278,138.4,138.38,0.04669884]
[1763532565771,3.13807278,138.4,138.38,0.04669884]
[1763532567175,3.13807278,138.4,138.32,6.5119]
[1763532567559,3.09,138.39,138.29,146.0934]
[1763532567764,3.09,138.38,138.29,107.8336]
[1763532568172,3.14007201,138.35,138.32,0.05487959]
[1763532568371,0.05007201,138.35,138.32,0.05487959]
[1763532570082,3.14007201,138.35,138.32,0.05487959]
[1763532573475,3.24,138.34,138.23,101.3605]
[1763532573675,3.24,138.34,138.19,101.3879]
[1763532573676,3.24,138.31,138.19,101.3879]
[1763532573877,3.24,138.29,138.18,101.3972]
[1763532574066,3.24,138.28,138.2,101.3863]
[1763532574380,3.24,138.28,138.19,101.392]
[1763532574381,3.24,138.28,138.21,6.5172]
[1763532574676,38.26,138.3,138.23,0.05471357]
[1763532574677,3.24,138.25,138.23,0.05471357]
[1763532575270,0.0507408,138.26,138.23,6.57061357]
[1763532575471,0.0507408,138.26,138.24,101.3567]
[1763532575781,0.0507408,138.26,138.24,107.8722]
[1763532576176,3.24,138.28,138.24,101.3567]
[1763532576371,3.24,138.31,138.24,101.3567]
[1763532576578,3.24,138.31,138.24,6.5157]
[1763532577277,3.24,138.28,138.26,0.05528183]
[1763532577583,3.29286582,138.28,138.26,0.05151077]
[1763532578078,3.24,138.32,138.26,0.05151077]
[1763532578385,3.24,138.36,138.3,101.3132]
[1763532578581,38.28,138.41,138.32,6.5118]
[1763532578785,3.24,138.4,138.32,101.297]
[1763532578972,3.24,138.4,138.3,5.11026516]
[1763532579174,3.24,138.4,138.32,6.5118]
[1763532579383,0.04932268,138.36,138.34,0.05421402]
[1763532581676,3.28932268,138.36,138.34,0.05421402]
[1763532582381,0.04932268,138.36,138.34,0.05421402]
[1763532583183,3.24,138.41,138.35,6.69441414]
[1763532583386,3.24,138.41,138.36,6.69441414]
[1763532583575,3.24,138.41,138.37,6.69441414]
[1763532583885,3.24,138.41,138.38,6.69441414]
[1763532584186,3.24,138.41,138.39,6.69441414]
[1763532584483,3.24,138.41,138.4,6.69441414]
[1763532584880,4.68,138.41,138.4,6.69441414]
[1763532585081,3.24,138.4,138.38,0.05145683]
[1763532585287,3.24,138.4,138.39,6.70976135]
[1763532585486,3.24,138.43,138.39,6.70976135]
[1763532585678,3.24,138.43,138.4,6.75823195]
[1763532585878,3.24,138.43,138.41,6.70976135]
[1763532586082,3.24,138.43,138.42,6.70976135]
[1763532586377,3.24,138.49,138.42,6.70976135]
[1763532586579,3.24,138.49,138.43,6.70976135]
[1763532586783,3.24,138.49,138.42,6.507]
[1763532586784,3.24,138.49,138.44,6.70976135]
[1763532586981,3.24,138.49,138.45,6.70976135]
[1763532587277,3.24,138.49,138.44,0.05543735]
[1763532587278,3.24,138.49,138.46,6.70976135]
[1763532587479,3.24,138.49,138.47,6.70976135]
[1763532587688,3.24,138.46,138.34,101.2806]
[1763532587877,3.24,138.46,138.35,101.2765]
[1763532588079,3.24,138.45,138.34,107.7918]
[1763532588279,3.24,138.45,138.35,101.2715]
[1763532588482,3.24,138.45,138.36,101.2681]
[1763532588991,0.04798275,138.42,138.39,0.04716894]
[1763532589177,3.28798275,138.42,138.39,0.04716894]
[1763532589783,3.28798275,138.42,138.3,101.3103]
[1763532589982,3.28798275,138.42,138.31,6.5121]
[1763532589983,3.24,138.42,138.31,6.5121]
[1763532590192,3.24,138.42,138.33,101.2904]
[1763532590495,3.24,138.42,138.36,101.2693]
[1763532590885,0.04663408,138.4,138.38,0.05442383]
[1763532591389,3.28663408,138.4,138.38,0.05442383]
[1763532592587,3.28663408,138.4,138.32,6.5117]
[1763532592793,3.24,138.39,138.32,6.5117]
[1763532593496,3.24,138.39,138.3,107.8234]
[1763532593786,3.24,138.36,138.34,0.05246462]
[1763532593991,3.24,138.36,138.27,107.8494]
[1763532594193,3.24,138.36,138.27,101.3352]
[1763532594390,3.24,138.36,138.26,101.3392]
[1763532594694,3.24,138.35,138.26,6.5147]
[1763532594886,0.04604619,138.32,138.29,0.04578849]
[1763532595089,3.28604619,138.32,138.29,0.04578849]
[1763532596697,3.24,138.29,138.18,101.3975]
[1763532596886,3.24,138.26,138.15,101.423]
[1763532597085,3.24,138.25,138.16,101.4154]
[1763532597290,3.24,138.25,138.16,107.9346]
[1763532597492,3.24,138.25,138.16,6.5192]
[1763532597695,3.29209717,138.22,138.19,0.05326425]
[1763532601199,3.29209717,138.22,138.13,6.5205]
[1763532601498,3.24,138.21,138.1,101.4596]
[1763532601996,3.24,138.18,138.08,38.36]
[1763532602196,3.24,138.16,138.08,101.4729]
[1763532602398,3.28583392,138.14,138.12,0.05310279]
[1763532602595,0.04583392,138.14,138.12,0.05310279]
[1763532603199,3.28583392,138.14,138.12,0.05310279]
[1763532605301,3.28583392,138.14,138.06,6.5242]
[1763532605502,3.28583392,138.14,138.08,101.474]
[1763532605503,3.24,138.14,138.08,101.474]
[1763532606403,0.04579394,138.12,138.1,0.04556107]
[1763532606608,3.00579394,138.12,138.1,0.04556107]
[1763532607704,3.00579394,138.12,138.01,139.9431]
[1763532607902,2.96,138.12,138.01,139.9431]
[1763532608208,2.96,138.12,138.02,101.5149]
[1763532608606,2.96,138.12,138.03,101.5104]
[1763532608813,0.04629297,138.09,138.06,0.05431584]
[1763532609293,3.00629297,138.09,138.06,0.05431584]
[1763532611417,2.96,138.08,137.99,6.5275]
[1763532611794,2.96,138.08,137.99,101.5402]
[1763532612399,0.05146661,138.05,138.02,0.05471044]
[1763532612600,0.05146661,138.05,138.03,101.5113]
[1763532612803,0.05146661,138.05,138.02,101.56841044]
[1763532613002,0.05146661,138.05,138.03,6.5254]
[1763532616315,3.01146661,138.05,138.02,0.05471044]
[1763532619415,0.05146661,138.05,138.02,0.05471044]
[1763532619615,0.05146661,138.05,138.03,6.5254]
[1763532620716,0.05146661,138.05,138.02,0.05471044]
[1763532620717,3.01146661,138.05,138.02,0.05471044]
[1763532621310,0.05146661,138.05,138.02,0.05471044]
[1763532621711,3.01146661,138.05,138.02,0.05471044]
[1763532623911,3.02146661,138.05,138.02,0.05471044]
[1763532625221,2.97,138.04,138.02,0.05471044]
[1763532627727,2.97,138.03,138.02,0.05471044]
[1763532629922,2.97,138.02,137.96,6.5287]
[1763532630120,2.97,138.02,137.9,101.6036]
[1763532630311,2.97,138.01,137.9,101.6036]
[1763532630915,0.04723547,137.97,137.94,0.05459862]
[1763532631119,2.97,137.96,137.94,0.05459862]
[1763532631914,0.04723547,137.97,137.94,103.06889862]
[1763532632220,28.97,138.04,137.97,101.5554]
[1763532632523,2.97,138.03,137.96,101.5622]
[1763532632718,2.97,138.03,137.98,6.5279]
[1763532633120,2.97,138.01,137.99,0.05216704]
[1763532633322,0.05462066,138.01,137.99,0.05200599]
[1763532633928,3.11,138.15,138.0,101.5272]
[1763532634121,3.11,138.13,137.99,101.5374]
[1763532634319,3.11,138.13,137.97,101.5497]
[1763532634625,3.11,138.13,138.0,101.5327]
[1763532634626,3.11,138.1,138.0,101.5327]
[1763532634825,3.11,138.1,137.97,101.5497]
[1763532635023,3.11,138.04,138.02,0.05062618]
[1763532640631,3.16360921,138.05,138.02,0.05062618]
[1763532641833,3.11,138.03,137.96,6.5287]
[1763532642234,3.11,138.03,137.94,101.5721]
[1763532643137,3.11,138.03,137.97,6.5284]
[1763532644237,3.15609767,138.01,137.99,0.04565889]
[1763532648841,3.11,137.99,137.9,101.6002]
[1763532649139,3.11,137.98,137.89,101.6118]
[1763532649341,3.11,137.98,137.9,6.5318]
[1763532649733,3.11,137.97,137.89,101.6135]
[1763532649936,3.11,137.97,137.91,6.5311]
[1763532650136,3.11,137.97,137.89,101.6135]
[1763532650535,3.11,137.97,137.92,6.5307]
[1763532650938,3.11,137.97,137.91,101.5997]
[1763532651144,3.11,137.97,137.93,6.5302]
[1763532652144,3.11,137.97,137.94,6.5297]
[1763532652345,41.53,138.01,137.93,101.585]
[1763532652741,3.11,138.0,137.96,6.5289]
[1763532653347,3.11,138.03,137.96,101.5627]
[1763532654435,0.04999889,138.01,137.98,0.04944298]
[1763532654847,0.04999889,138.01,137.98,6.57724298]
[1763532657645,3.15999889,138.01,137.98,0.04944298]
[1763532659160,3.15999889,138.01,137.92,6.73039637]
[1763532659360,3.11,138.01,137.92,6.73039637]
[1763532659559,9.6378,137.99,137.92,6.73039637]
[1763532659857,3.11,137.99,137.92,6.73039637]
[1763532660059,0.04642267,137.97,137.94,0.04597253]
[1763532660454,0.04642267,137.97,137.94,6.57587253]
[1763532660656,3.15642267,137.97,137.94,0.04597253]
[1763532661461,3.11,138.03,137.95,101.5684]
[1763532661657,3.11,138.03,137.98,6.5279]
[1763532661864,3.11,138.03,137.96,6.73039637]
[1763532662452,0.05153912,138.01,137.98,0.04555065]
[1763532662649,3.16153912,138.01,137.98,0.04555065]
[1763532664468,0.05153912,138.01,137.98,0.04555065]
[1763532664868,0.05153912,138.01,137.99,6.5275]
[1763532665165,41.37,138.07,137.98,6.77594702]
[1763532665367,41.37,138.07,137.98,6.73039637]
[1763532665968,41.37,138.07,137.99,6.73039637]
[1763532666166,0.04734582,138.04,138.02,0.05019454]
[1763532666866,0.04734582,138.04,138.02,6.57619454]
[1763532669961,2.99,138.12,138.04,101.5035]
[1763532670173,2.99,138.15,138.07,101.4814]
[1763532670364,2.99,138.15,138.08,101.4743]
[1763532670672,2.99,138.15,138.1,6.5222]
[1763532670968,0.05313403,138.14,138.11,0.04679266]
[1763532671774,0.05313403,138.14,138.11,6.56839266]
[1763532672272,0.05313403,138.14,138.11,0.04679266]
[1763532672470,3.04313403,138.14,138.11,0.04679266]
[1763532673377,0.05313403,138.14,138.11,0.04679266]
[1763532674064,0.05313403,138.14,138.11,6.56849266]
[1763532674666,0.05313403,138.14,138.11,0.04679266]
[1763532675471,0.05313403,138.14,138.11,6.56849266]
[1763532676474,0.05313403,138.14,138.11,0.04679266]
[1763532677669,0.05313403,138.14,138.11,101.49539266]
[1763532677972,2.99,138.2,138.13,101.4353]
[1763532678171,2.99,138.2,138.09,101.4643]
[1763532678375,2.99,138.2,138.1,38.34]
[1763532678871,0.05249829,138.16,138.14,0.05428537]
[1763532680779,3.04249829,138.16,138.14,0.05428537]
[1763532681278,0.05249829,138.16,138.14,0.05428537]
[1763532682176,3.04249829,138.16,138.14,0.05428537]
[1763532683175,9.56239829,138.16,138.08,6.5231]
[1763532683382,3.2,138.15,138.05,101.4895]
[1763532684073,3.2,138.13,138.05,101.4967]
[1763532684278,0.04616967,138.1,138.08,0.05277156]
[1763532685482,0.04616967,138.1,138.08,6.57587156]
[1763532685674,0.04616967,138.1,138.08,0.05277156]
[1763532686776,0.04616967,138.1,138.08,6.57587156]
[1763532691884,3.2,138.18,138.11,101.4526]
[1763532692081,3.2,138.18,138.12,101.4447]
[1763532692778,0.05536651,138.16,138.14,0.05309119]
[1763532692979,0.05536651,138.16,138.14,6.57349119]
[1763532695782,0.05536651,138.16,138.14,0.05309119]
[1763532696181,3.07536651,138.16,138.14,0.05309119]
[1763532696388,3.02,138.15,138.14,0.05309119]
[1763532696885,0.05536651,138.16,138.14,0.05309119]
[1763532697281,0.05536651,138.16,138.14,6.57349119]
[1763532697486,0.05536651,138.16,138.14,0.05309119]
[1763532699585,3.07536651,138.16,138.14,0.05309119]
[1763532705596,0.05536651,138.16,138.14,0.05309119]
[1763532706101,0.05536651,138.16,138.14,6.57349119]
[1763532706598,0.05536651,138.16,138.14,0.05309119]
[1763532707999,0.05536651,138.16,138.14,8.54172131]
[1763532708191,3.02,138.19,138.14,8.54172131]
[1763532708192,3.02,138.19,138.14,2.02132131]
[1763532708898,3.02,138.19,138.15,6.5196]
[1763532709202,0.05386888,138.18,138.14,0.05309119]
[1763532710696,3.07386888,138.18,138.14,6.57319119]
[1763532710996,3.07386888,138.18,138.15,6.5199]
[1763532712396,0.05386888,138.18,138.16,6.5195]
[1763532712598,0.05386888,138.18,138.16,13.24989637]
[1763532712788,3.02,138.22,138.15,108.15009637]
[1763532713396,3.02,138.22,138.16,6.73039637]
[1763532713593,3.02,138.22,138.19,6.5179]
[1763532713799,3.06687945,138.22,138.19,6.56509811]
[1763532714098,0.04687945,138.22,138.2,6.5176]
[1763532714297,3.02,138.28,138.19,101.43739811]
[1763532714494,3.02,138.28,138.21,101.3792]
[1763532714896,3.02,138.28,138.23,6.5161]
[1763532715097,3.02,138.28,138.22,101.3712]
[1763532715307,0.04554363,138.26,138.24,0.05314745]
[1763532716612,0.04554363,138.26,138.24,6.56874745]
[1763532717300,0.04554363,138.26,138.24,0.05314745]
[1763532718405,3.06554363,138.26,138.24,0.05314745]
[1763532719409,0.04554363,138.26,138.24,0.05314745]
[1763532720310,3.06554363,138.26,138.24,0.05314745]
[1763532721106,3.02,138.34,138.24,0.05314745]
[1763532721307,3.02,138.34,138.23,139.618]
[1763532721503,3.02,138.34,138.24,101.3571]
[1763532721700,3.02,138.32,138.23,66.19644327]
[1763532721901,3.02,138.3,138.23,6.5158]
[1763532722104,3.07016504,138.28,138.25,0.051978]
[1763532722302,0.05419438,138.28,138.25,0.04937892]
[1763532722815,3.02,138.39,138.32,101.2983]
[1763532723706,3.02,138.39,138.34,6.5108]
[1763532723909,0.04563507,138.37,138.34,6.56256852]
[1763532724215,0.04563507,138.37,138.34,0.05176852]
[1763532724409,101.2065,138.45,138.34,0.05176852]
[1763532724410,3.01,138.49,138.36,101.2658]
[1763532724608,3.01,138.47,138.37,101.2619]
[1763532724908,3.01,138.47,138.38,101.2518]
[1763532725106,101.1561,138.52,138.38,101.2518]
[1763532725107,41.45,138.46,138.38,101.2518]
[1763532725508,0.04730948,138.43,138.41,0.04553324]
[1763532725706,3.01,138.55,138.45,101.2033]
[1763532725908,38.48,138.54,138.44,101.2079]
[1763532726112,3.01,138.53,138.46,6.505]
[1763532726614,3.01,138.53,138.46,107.701]
[1763532726918,6.5011,138.56,138.48,0.04902864]
[1763532726919,3.03186757,138.51,138.48,0.04902864]
[1763532728109,38.46,138.5,138.48,0.04902864]
[1763532728508,3.01,138.49,138.48,0.04902864]
[1763532729118,41.47,138.5,138.48,0.04902864]
[1763532729317,0.02186757,138.51,138.48,0.04902864]
[1763532729512,3.01,138.5,138.48,0.04902864]
[1763532730812,3.01,138.5,138.4,6.6582]
[1763532731304,3.01,138.48,138.4,0.15]
[1763532731616,3.01,138.46,138.4,0.15]
[1763532731811,3.05655006,138.44,138.42,0.05380798]
[1763532732003,3.01,138.43,138.4,0.15]
[1763532732205,3.01,138.42,138.31,101.3058]
[1763532732402,3.01,138.4,138.3,8.52990342]
[1763532732613,3.01,138.38,138.31,6.5124]
[1763532733005,0.04631448,138.36,138.33,0.05452967]
[1763532733413,3.05631448,138.36,138.33,0.05452967]
[1763532734016,38.46,138.35,138.33,0.05452967]
[1763532734412,3.05631448,138.36,138.33,0.05452967]
[1763532734611,0.04631448,138.36,138.33,0.05452967]
[1763532734924,38.48631448,138.36,138.33,0.05452967]
[1763532735106,101.1993,138.46,138.36,101.2683]
[1763532735107,3.01,138.46,138.36,101.2683]
[1763532735308,41.47,138.45,138.36,101.2683]
[1763532735516,41.47,138.45,138.37,107.7714]
[1763532735818,41.47,138.45,138.37,101.2621]
[1763532736008,0.05471079,138.42,138.4,0.05312696]
[1763532737021,3.01,138.41,138.4,0.05312696]
[1763532738718,41.47,138.41,138.4,0.05312696]
[1763532741124,0.05471079,138.42,138.4,0.05312696]
[1763532741317,38.49471079,138.42,138.4,0.05312696]
[1763532743020,38.44,138.41,138.4,0.05312696]
[1763532744623,41.55,138.41,138.4,0.05312696]
[1763532745512,3.11,138.4,138.31,101.3024]
[1763532746125,3.11,138.4,138.33,6.5113]
[1763532746619,3.11,138.37,138.35,0.05122764]
[1763532746830,38.44,138.36,138.35,0.05122764]
[1763532747323,3.11,138.35,138.31,6.5123]
[1763532747520,3.11,138.35,138.27,101.3326]
[1763532747825,3.11,138.35,138.25,101.3497]
[1763532748526,0.05307343,138.31,138.29,0.051319]
[1763532748829,38.47307343,138.31,138.29,0.051319]
[1763532749012,0.05307343,138.31,138.29,0.051319]
[1763532749924,0.05307343,138.31,138.29,6.564419]
[1763532752928,38.42,138.35,138.33,6.5115]
[1763532753519,41.56,138.36,138.33,6.5115]
[1763532753923,41.61285954,138.36,138.33,6.5115]
[1763532754123,0.05285954,138.36,138.33,0.05553375]
[1763532754330,38.47285954,138.36,138.33,0.05553375]
[1763532754625,38.47285954,138.36,138.33,6.56683375]
[1763532754828,0.05285954,138.36,138.33,0.05553375]
[1763532755026,0.05285954,138.36,138.33,101.34393375]
[1763532755333,3.19285954,138.36,138.33,0.05553375]
[1763532756122,38.4,138.35,138.33,0.05553375]
[1763532756430,3.14,138.34,138.33,0.05553375]
[1763532756633,3.14,138.34,138.27,101.3323]
[1763532757021,3.14,138.34,138.24,139.7741]
[1763532757222,3.14,138.34,138.26,101.3417]
[1763532757623,0.05158898,138.31,138.29,0.0521097]
[1763532757818,3.19158898,138.31,138.29,0.0521097]
[1763532759234,0.05158898,138.31,138.29,6.5654097]
[1763532761527,3.19158898,138.31,138.29,0.0521097]
[1763532764334,3.19158898,138.31,138.25,6.515]
[1763532765234,9.70428898,138.31,138.27,0.05170349]
[1763532765432,3.14,138.3,138.27,0.05170349]
[1763532766631,3.14,138.28,138.27,0.05170349]
[1763532769640,41.52,138.28,138.27,0.05170349]
[1763532769838,38.36,138.3,138.27,0.05170349]
[1763532771039,41.5,138.3,138.28,6.5137]
[1763532772937,3.14,138.3,138.28,6.5137]
[1763532773139,41.5,138.3,138.28,6.5137]
[1763532777339,38.36,138.3,138.28,6.5137]
[1763532777641,38.32,138.3,138.28,6.5137]
[1763532778436,3.14,138.34,138.28,101.3269]
[1763532778637,3.14,138.34,138.27,101.38260349]
[1763532778638,3.14,138.34,138.27,101.3309]
[1763532779040,3.14,138.33,138.25,108.01923616]
[1763532779243,3.14,138.33,138.25,101.3467]
[1763532779738,3.19532206,138.3,138.28,0.04838199]
[1763532780130,0.05532206,138.3,138.28,6.56208199]
[1763532780944,3.19532206,138.3,138.28,0.04838199]
[1763532782441,3.19532206,138.3,138.2,6.67253616]
[1763532782740,101.3016,138.32,138.23,6.5161]
[1763532782741,3.14,138.28,138.23,6.5161]
[1763532782940,3.14,138.26,138.18,6.67253616]
[1763532783140,3.14,138.26,138.17,101.4055]
[1763532783343,0.05483427,138.23,138.2,0.05398487]
[1763532783843,3.07483427,138.23,138.2,0.05398487]
[1763532784738,41.41483427,138.23,138.2,0.05398487]
[1763532784941,0.05483427,138.23,138.2,0.05398487]
[1763532785136,0.05483427,138.23,138.2,101.43728487]
[1763532785341,0.05483427,138.23,138.21,6.5171]
[1763532785733,3.02,138.35,138.25,101.348]
[1763532785936,3.02,138.33,138.29,6.5132]
[1763532786645,0.05044247,138.32,138.3,0.05097862]
[1763532786841,3.07044247,138.32,138.3,0.00097862]
[1763532787037,3.07044247,138.32,138.23,101.3639]
[1763532787239,3.02,138.32,138.23,101.3639]
[1763532787452,3.02,138.32,138.25,6.5151]
[1763532787841,3.02,138.31,138.25,6.5151]
[1763532788147,38.36,138.34,138.25,6.5151]
[1763532788148,3.06961551,138.29,138.27,0.05550486]
[1763532788451,3.06922098,138.29,138.27,0.05550486]
[1763532789545,0.04922098,138.29,138.27,0.05550486]
[1763532789742,3.06922098,138.29,138.27,0.05550486]
[1763532790444,0.04922098,138.29,138.27,0.05550486]
[1763532791344,3.06922098,138.29,138.27,0.05550486]
[1763532793550,3.06922098,138.29,138.18,8.82650976]
[1763532793551,3.02,138.28,138.18,8.82650976]
[1763532793755,3.02,138.26,138.16,8.82650976]
[1763532793946,3.02,138.24,138.18,6.5185]
[1763532794146,3.02,138.22,138.18,6.5185]
[1763532794445,0.05550748,138.21,138.19,0.04778305]
[1763532795050,0.05550748,138.21,138.19,6.56568305]
[1763532795757,3.02,138.31,138.24,6.5156]
[1763532795954,3.02,138.3,138.24,6.5156]
[1763532796257,3.02,138.29,138.24,6.5156]
[1763532796748,0.04658314,138.28,138.25,101.3923352]
[1763532796953,0.0543962,138.28,138.25,101.39196945]
[1763532797945,0.0543962,138.28,138.25,0.04556945]
[1763532798154,3.02,138.34,138.27,101.3321]
[1763532798556,3.02,138.34,138.29,6.5134]
[1763532799057,0.04733759,138.33,138.31,6.5125]
[1763532799247,0.04822653,138.33,138.31,6.56201242]
[1763532799558,3.02,138.39,138.33,6.5113]
[1763532799952,3.02,138.39,138.28,110.14980976]
[1763532800159,3.02,138.39,138.28,101.3233]
[1763532800559,38.38,138.4,138.27,13.9445858]
[1763532800560,3.02,138.36,138.27,8.82650976]
[1763532800854,0.05542214,138.33,138.3,0.0490645]
[1763532802055,0.05542214,138.33,138.3,6.5617645]
[1763532803162,0.05542214,138.33,138.31,6.5122]
[1763532805052,0.05542214,138.33,138.3,0.0490645]
[1763532805452,3.20542214,138.33,138.3,0.0490645]
[1763532806059,41.56542214,138.33,138.3,0.0490645]
[1763532806360,0.05542214,138.33,138.3,0.0490645]
[1763532806659,3.20542214,138.33,138.3,0.0490645]
[1763532807049,0.05542214,138.33,138.3,0.0490645]
[1763532808061,3.20542214,138.33,138.3,0.0490645]
[1763532811359,41.58542214,138.33,138.3,0.0490645]
[1763532811662,3.15,138.32,138.3,0.0490645]
[1763532813656,3.15,138.32,138.24,6.5155]
[1763532814156,3.23,138.3,138.22,6.5165]
[1763532814358,3.23,138.3,138.21,148.58160976]
[1763532814661,0.04841529,138.27,138.24,0.0521948]
[1763532815551,0.04841529,138.27,138.24,6.5677948]
[1763532816159,0.04841529,138.27,138.24,13.29245931]
[1763532816667,0.04841529,138.27,138.24,6.77685931]
[1763532816850,3.27841529,138.27,138.24,0.0521948]
[1763532817050,3.23,138.26,138.24,0.0521948]
[1763532817660,3.23,138.25,138.2,6.72466451]
[1763532817860,3.23,138.25,138.18,13.24306451]
[1763532818262,9.746,138.24,138.18,6.72466451]
[1763532818461,3.23,138.23,138.17,6.72466451]
[1763532818868,0.04797804,138.21,138.19,0.05133761]
[1763532819664,38.34,138.25,138.2,101.3865]
[1763532819857,3.23,138.26,138.21,6.72466451]
[1763532820165,3.23,138.26,138.22,6.5165]
[1763532820760,3.28332408,138.25,138.23,0.04649352]
[1763532821466,3.28332408,138.25,138.18,6.72466451]
[1763532821769,3.28332408,138.25,138.17,6.72466451]
[1763532821966,3.23,138.25,138.17,6.72466451]
[1763532822159,9.7454,138.25,138.19,6.518]
[1763532822461,0.05008798,138.23,138.21,0.05340125]
[1763532823257,0.05008798,138.23,138.21,6.57040125]
[1763532824963,3.28008798,138.23,138.21,0.05340125]
[1763532826970,3.28008798,138.23,138.15,6.72466451]
[1763532826971,48.13648798,138.23,138.15,6.72466451]
[1763532827269,3.23,138.22,138.15,6.72466451]
[1763532827663,3.23,138.22,138.16,6.5194]